[Event "HSG Open 2022 A"]
[Site "Hilversum, Netherlands"]
[Date "2022.06.19"]
[Round "5.2"]
[White "Van Foreest, Machteld"]
[Black "Harff, Marcel"]
[Result "0-1"]
[TimeControl "1:50 + 0.10"]
[WhiteElo "2295"]
[BlackElo "2329"]

1. e4 {[%clk 01:46:30]} {[%emt 00:03:50]} e6 {[%clk 01:50:08]} {[%emt
00:00:11]} 2. d4 {[%clk 01:46:38]} {[%emt 00:00:03]} d5 {[%clk 01:50:11]}
{[%emt 00:00:07]} 3. Bd3 {[%clk 01:46:44]} {[%emt 00:00:05]} dxe4 {[%clk
01:49:46]} {[%emt 00:00:33]} 4. Bxe4 {[%clk 01:46:50]} {[%emt 00:00:04]} Nf6
{[%clk 01:49:47]} {[%emt 00:00:10]} 5. Bf3 {[%clk 01:46:57]} {[%emt 00:00:04]}
Nbd7 {[%clk 01:49:49]} {[%emt 00:00:07]} 6. Ne2 {[%clk 01:47:00]} {[%emt
00:00:07]} e5 {[%clk 01:49:07]} {[%emt 00:00:52]} 7. Bg5 {[%clk 01:37:21]}
{[%emt 00:09:49]} h6 {[%emt 00:05:58]} 8. dxe5 {[%clk 01:33:37]} hxg5 {[%clk
01:47:15]} {[%emt 00:00:07]} 9. exf6 {[%clk 01:33:42]} {[%emt 00:00:06]} Qxf6
{[%clk 01:46:51]} {[%emt 00:00:33]} 10. Qd4 {[%clk 01:21:30]} {[%emt 00:12:23]}
Bc5 {[%clk 01:41:42]} {[%emt 00:05:19]} 11. Qxf6 {[%clk 01:13:03]} {[%emt
00:08:38]} Nxf6 {[%clk 01:41:20]} {[%emt 00:00:32]} 12. g3 {[%clk 01:09:11]}
{[%emt 00:04:01]} Ng4 {[%clk 01:38:49]} {[%emt 00:02:40]} 13. Bxg4 {[%clk
00:59:43]} {[%emt 00:09:39]} Bxg4 {[%clk 01:38:48]} {[%emt 00:00:11]} 14. Nd2
{[%clk 00:59:24]} {[%emt 00:00:29]} O-O-O {[%clk 01:37:03]} {[%emt 00:01:55]}
15. h3 {[%clk 00:52:03]} {[%emt 00:07:31]} Bxe2 {[%clk 01:34:09]} {[%emt
00:03:04]} 16. Kxe2 {[%clk 00:51:50]} {[%emt 00:00:24]} Rhe8+ {[%clk 01:34:13]}
{[%emt 00:00:04]} 17. Kd1 {[%clk 00:51:37]} {[%emt 00:00:24]} Bxf2 {[%clk
01:34:21]} {[%emt 00:00:03]} 18. c3 {[%clk 00:46:44]} {[%emt 00:05:03]} Rd6
{[%clk 01:33:33]} {[%emt 00:00:57]} 19. Rc1 {[%clk 00:45:37]} {[%emt 00:01:18]}
Bxg3 {[%clk 01:33:12]} {[%emt 00:00:31]} 20. Rc2 {[%clk 00:44:51]} {[%emt
00:00:55]} Bf4 {[%clk 01:33:02]} {[%emt 00:00:20]} 21. Rf1 {[%clk 00:43:52]}
{[%emt 00:01:09]} Red8 {[%clk 01:32:55]} {[%emt 00:00:18]} 22. Rf2 {[%clk
00:43:50]} {[%emt 00:00:13]} f5 {[%clk 01:32:52]} {[%emt 00:00:12]} 23. Re2
{[%clk 00:43:39]} {[%emt 00:00:22]} Rxd2+ {[%clk 01:32:29]} {[%emt 00:00:32]}
24. Rcxd2 {[%clk 00:43:44]} {[%emt 00:00:07]} Rxd2+ {[%clk 01:32:33]} {[%emt
00:00:05]} 25. Rxd2 {[%clk 00:43:52]} {[%emt 00:00:01]} Bxd2 {[%clk 01:32:35]}
{[%emt 00:00:08]} 26. Kxd2 {[%clk 00:44:00]} {[%emt 00:00:02]} Kd7 {[%clk
01:32:30]} {[%emt 00:00:15]} 27. Ke3 {[%clk 00:44:04]} {[%emt 00:00:06]} Ke6
{[%clk 01:32:29]} {[%emt 00:00:10]} 28. Kd4 {[%clk 00:44:11]} {[%emt 00:00:04]}
b6 {[%clk 01:32:14]} {[%emt 00:00:25]} 29. b3 {[%clk 00:44:06]} {[%emt
00:00:15]} c5+ {[%clk 01:32:03]} {[%emt 00:00:21]} 30. Ke3 {[%clk 00:44:14]}
{[%emt 00:00:03]} Ke5 {[%clk 01:32:01]} {[%emt 00:00:10]} 31. Kf3 {[%clk
00:44:21]} {[%emt 00:00:04]} g4+ {[%clk 01:31:48]} {[%emt 00:00:23]} 0-1

[Event "HSG Open 2022 A"]
[Site "Hilversum, Netherlands"]
[Date "2022.06.19"]
[Round "5.3"]
[White "Grutter, Tim"]
[Black "Pijpers, Arthur"]
[Result "0-1"]
[TimeControl "1:50 + 0.10"]
[WhiteElo "2234"]
[BlackElo "2455"]

1. e4 {[%clk 01:50:18]} {[%emt 00:00:02]} c5 {[%clk 01:50:16]} {[%emt
00:00:05]} 2. Nf3 {[%clk 01:50:25]} {[%emt 00:00:03]} d6 {[%clk 01:50:22]}
{[%emt 00:00:05]} 3. d4 {[%clk 01:50:32]} {[%emt 00:00:02]} cxd4 {[%clk
01:50:26]} {[%emt 00:00:05]} 4. Nxd4 {[%clk 01:50:40]} {[%emt 00:00:03]} Nf6
{[%clk 01:50:30]} {[%emt 00:00:06]} 5. Nc3 {[%clk 01:50:48]} {[%emt 00:00:02]}
g6 {[%clk 01:50:36]} {[%emt 00:00:05]} 6. Be3 {[%clk 01:50:54]} {[%emt
00:00:04]} Bg7 {[%clk 01:50:40]} {[%emt 00:00:05]} 7. f3 {[%clk 01:51:01]}
{[%emt 00:00:02]} Nc6 {[%clk 01:50:45]} {[%emt 00:00:06]} 8. Qd2 {[%clk
01:51:05]} {[%emt 00:00:06]} O-O {[%clk 01:50:49]} {[%emt 00:00:06]} 9. O-O-O
{[%clk 01:51:11]} {[%emt 00:00:04]} d5 {[%clk 01:50:29]} {[%emt 00:00:30]} 10.
exd5 {[%clk 01:51:11]} {[%emt 00:00:10]} Nxd5 {[%clk 01:50:34]} {[%emt
00:00:05]} 11. Nxc6 {[%clk 01:51:18]} {[%emt 00:00:04]} bxc6 {[%clk 01:50:39]}
{[%emt 00:00:05]} 12. Bd4 {[%clk 01:51:24]} {[%emt 00:00:03]} Bxd4 {[%clk
01:50:42]} {[%emt 00:00:07]} 13. Qxd4 {[%clk 01:51:31]} {[%emt 00:00:03]} Qb6
{[%clk 01:50:46]} {[%emt 00:00:06]} 14. Na4 {[%clk 01:51:22]} {[%emt 00:00:19]}
Qa5 {[%clk 01:48:50]} {[%emt 00:02:07]} 15. b3 {[%clk 01:51:26]} {[%emt
00:00:06]} Qc7 {[%clk 01:48:56]} {[%emt 00:00:03]} 16. Bc4 {[%clk 01:50:31]}
{[%emt 00:01:05]} Rd8 {[%clk 01:37:30]} {[%emt 00:11:36]} 17. g4 {[%clk
01:50:25]} {[%emt 00:00:16]} Be6 {[%clk 01:37:18]} {[%emt 00:00:21]} 18. Nc5
{[%clk 01:50:29]} {[%emt 00:00:07]} Nf4 {[%clk 01:37:14]} {[%emt 00:00:15]} 19.
Nxe6 {[%clk 01:50:34]} {[%emt 00:00:05]} Nxe6 {[%clk 01:37:18]} {[%emt
00:00:06]} 20. Qc3 {[%clk 01:49:30]} {[%emt 00:01:14]} Nf4 {[%clk 01:19:47]}
{[%emt 00:17:41]} 21. h4 {[%clk 01:40:31]} {[%emt 00:09:09]} h6 {[%clk
01:19:52]} {[%emt 00:00:05]} 22. Kb2 {[%clk 01:34:09]} {[%emt 00:06:32]} Rxd1
{[%clk 01:15:44]} {[%emt 00:04:18]} 23. Rxd1 {[%clk 01:34:06]} {[%emt
00:00:13]} Rd8 {[%clk 01:15:50]} {[%emt 00:00:04]} 24. Rxd8+ {[%clk 01:32:25]}
{[%emt 00:01:51]} Qxd8 {[%clk 01:15:56]} {[%emt 00:00:04]} 25. Qe3 {[%clk
01:29:22]} {[%emt 00:03:14]} Qc7 {[%clk 01:15:51]} {[%emt 00:00:15]} 26. a4
{[%clk 01:27:25]} {[%emt 00:02:06]} Kg7 {[%clk 01:12:17]} {[%emt 00:03:44]} 27.
a5 {[%clk 01:23:59]} {[%emt 00:03:37]} c5 {[%clk 00:40:09]} {[%emt 00:32:18]}
28. Qc3+ {[%clk 01:09:35]} {[%emt 00:14:33]} e5 {[%clk 00:39:25]} {[%emt
00:00:55]} 29. Qe3 {[%clk 01:08:45]} {[%emt 00:01:00]} Ng2 {[%clk 00:31:06]}
{[%emt 00:08:29]} 30. Qe4 {[%clk 01:03:56]} {[%emt 00:04:59]} Nxh4 {[%clk
00:26:02]} {[%emt 00:05:14]} 31. a6 {[%clk 01:03:17]} {[%emt 00:00:49]} Qe7
{[%clk 00:26:02]} {[%emt 00:00:10]} 32. Qb7 {[%clk 01:03:07]} {[%emt 00:00:20]}
Kf6 {[%clk 00:22:21]} {[%emt 00:03:51]} 33. c3 {[%clk 01:02:26]} {[%emt
00:00:51]} Ng2 {[%clk 00:22:20]} {[%emt 00:00:10]} 34. b4 {[%clk 00:54:42]}
{[%emt 00:07:55]} cxb4 {[%clk 00:22:26]} {[%emt 00:00:04]} 35. Qxe7+ {[%clk
00:52:57]} {[%emt 00:01:55]} Kxe7 {[%clk 00:22:32]} {[%emt 00:00:04]} 36. cxb4
{[%clk 00:53:03]} {[%emt 00:00:04]} Kd6 {[%clk 00:13:11]} {[%emt 00:09:31]} 37.
Kc3 {[%clk 00:27:05]} {[%emt 00:26:08]} h5 {[%clk 00:10:46]} {[%emt 00:02:35]}
38. gxh5 {[%clk 00:24:23]} {[%emt 00:02:52]} gxh5 {[%clk 00:10:51]} {[%emt
00:00:05]} 39. Kd2 {[%clk 00:23:10]} {[%emt 00:01:23]} h4 {[%clk 00:10:37]}
{[%emt 00:00:24]} 40. Ke2 {[%clk 00:22:55]} {[%emt 00:00:25]} h3 {[%clk
00:10:42]} {[%emt 00:00:05]} 41. Kf2 {[%clk 00:23:00]} {[%emt 00:00:05]} Ne3
{[%clk 00:10:47]} {[%emt 00:00:04]} 42. Bf1 {[%clk 00:22:59]} {[%emt 00:00:12]}
Nxf1 {[%clk 00:10:52]} {[%emt 00:00:05]} 43. Kxf1 {[%clk 00:23:07]} {[%emt
00:00:02]} Kc6 {[%clk 00:10:57]} {[%emt 00:00:05]} 44. Kf2 {[%clk 00:23:10]}
{[%emt 00:00:07]} Kb5 {[%clk 00:11:02]} {[%emt 00:00:05]} 45. Kg3 {[%clk
00:23:13]} {[%emt 00:00:07]} Kxa6 {[%clk 00:11:08]} {[%emt 00:00:04]} 46. Kxh3
{[%clk 00:23:17]} {[%emt 00:00:05]} Kb5 {[%clk 00:11:15]} {[%emt 00:00:03]} 47.
Kg4 {[%clk 00:23:22]} {[%emt 00:00:05]} Kxb4 {[%clk 00:11:21]} {[%emt
00:00:05]} 48. Kf5 {[%clk 00:23:28]} {[%emt 00:00:03]} a5 {[%clk 00:11:27]}
{[%emt 00:00:05]} 49. Kxe5 {[%clk 00:23:36]} {[%emt 00:00:02]} a4 {[%clk
00:11:33]} {[%emt 00:00:04]} 0-1

[Event "HSG Open 2022 A"]
[Site "Hilversum, Netherlands"]
[Date "2022.06.19"]
[Round "5.4"]
[White "Konings, Frans"]
[Black "Leenhouts, Koen"]
[Result "0-1"]
[TimeControl "1:50 + 0.10"]
[WhiteElo "2131"]
[BlackElo "2440"]

1. Nf3 {[%clk 01:50:15]} {[%emt 00:00:05]} Nf6 {[%clk 01:49:59]} {[%emt
00:00:21]} 2. c4 {[%clk 01:50:20]} {[%emt 00:00:05]} g6 {[%clk 01:49:32]}
{[%emt 00:00:38]} 3. d4 {[%clk 01:50:16]} {[%emt 00:00:14]} Bg7 {[%clk
01:49:34]} {[%emt 00:00:08]} 4. Nc3 {[%clk 01:49:32]} {[%emt 00:00:53]} d5
{[%clk 01:49:35]} {[%emt 00:00:09]} 5. e3 {[%clk 01:47:54]} {[%emt 00:01:48]}
c6 {[%clk 01:48:43]} {[%emt 00:01:02]} 6. Qb3 {[%clk 01:47:53]} {[%emt
00:00:11]} O-O {[%clk 01:48:31]} {[%emt 00:00:20]} 7. Bd2 {[%clk 01:47:39]}
{[%emt 00:00:27]} e6 {[%clk 01:42:25]} {[%emt 00:06:15]} 8. Rc1 {[%clk
01:47:12]} {[%emt 00:00:38]} Nbd7 {[%clk 01:41:27]} {[%emt 00:01:08]} 9. Be2
{[%clk 01:43:55]} {[%emt 00:03:27]} b6 {[%clk 01:39:08]} {[%emt 00:02:28]} 10.
O-O {[%clk 01:42:51]} {[%emt 00:01:14]} Bb7 {[%clk 01:39:09]} {[%emt 00:00:10]}
11. Rfd1 {[%clk 01:41:06]} {[%emt 00:01:55]} Qe7 {[%clk 01:35:16]} {[%emt
00:04:04]} 12. Re1 {[%clk 01:37:42]} {[%emt 00:03:32]} Rfd8 {[%clk 01:26:10]}
{[%emt 00:09:16]} 13. Bd3 {[%clk 01:37:21]} {[%emt 00:00:32]} dxc4 {[%clk
01:23:33]} {[%emt 00:02:47]} 14. Bxc4 {[%clk 01:36:37]} {[%emt 00:00:55]} c5
{[%clk 01:23:32]} {[%emt 00:00:10]} 15. Be2 {[%clk 01:27:07]} {[%emt 00:09:40]}
Rac8 {[%clk 01:19:20]} {[%emt 00:04:22]} 16. Qa3 {[%clk 01:26:53]} {[%emt
00:00:25]} a6 {[%clk 01:18:54]} {[%emt 00:00:35]} 17. Na4 {[%clk 01:19:36]}
{[%emt 00:07:27]} Ne4 {[%clk 01:10:27]} {[%emt 00:08:38]} 18. Red1 {[%clk
01:16:05]} {[%emt 00:03:41]} Bf8 {[%clk 01:01:57]} {[%emt 00:08:39]} 19. dxc5
{[%clk 01:13:15]} {[%emt 00:03:01]} Nxd2 {[%clk 00:59:51]} {[%emt 00:02:15]} 20.
Rxd2 {[%clk 01:12:27]} {[%emt 00:00:59]} b5 {[%clk 00:59:08]} {[%emt 00:00:53]}
21. Rxd7 {[%clk 01:09:46]} {[%emt 00:02:51]} Qxd7 {[%clk 00:34:25]} {[%emt
00:24:53]} 22. Nb6 {[%clk 01:07:31]} {[%emt 00:02:25]} Bxc5 {[%clk 00:33:35]}
{[%emt 00:00:59]} 23. Rxc5 {[%clk 01:06:10]} {[%emt 00:01:31]} Qd1+ {[%clk
00:33:32]} {[%emt 00:00:13]} 24. Bf1 {[%clk 01:06:15]} {[%emt 00:00:05]} Rxc5
{[%clk 00:32:29]} 25. Qxc5 {[%clk 01:06:20]} {[%emt 00:01:18]} Bxf3 {[%clk
00:30:42]} {[%emt 00:01:57]} 26. gxf3 {[%clk 01:06:25]} {[%emt 00:00:05]} Qxf3
{[%clk 00:29:57]} {[%emt 00:00:55]} 27. Nd7 {[%clk 01:04:33]} {[%emt 00:02:03]}
Qg4+ {[%clk 00:30:00]} {[%emt 00:00:06]} 28. Kh1 {[%clk 01:04:31]} {[%emt
00:00:11]} Qd1 {[%clk 00:29:17]} {[%emt 00:00:54]} 0-1

[Event "HSG Open 2022 A"]
[Site "Hilversum, Netherlands"]
[Date "2022.06.19"]
[Round "5.5"]
[White "Elgersma, Onno"]
[Black "Honkoop, Gilian"]
[Result "1-0"]
[TimeControl "1:50 + 0.10"]
[WhiteElo "2312"]
[BlackElo "2208"]

1. c4 {[%clk 01:48:49]} {[%emt 00:01:30]} e5 {[%clk 01:48:24]} {[%emt
00:01:56]} 2. e3 {[%clk 01:43:42]} {[%emt 00:05:17]} Nf6 {[%clk 01:45:15]}
{[%emt 00:03:20]} 3. d4 {[%clk 01:38:08]} {[%emt 00:05:44]} exd4 {[%clk
01:44:08]} {[%emt 00:01:17]} 4. exd4 {[%clk 01:38:13]} {[%emt 00:00:05]} d5
{[%clk 01:43:48]} {[%emt 00:00:29]} 5. Nc3 {[%clk 01:38:06]} {[%emt 00:00:17]}
Be7 {[%clk 01:35:35]} {[%emt 00:08:24]} 6. Nf3 {[%clk 01:25:01]} {[%emt
00:13:14]} O-O {[%clk 01:35:33]} {[%emt 00:00:10]} 7. h3 {[%clk 01:20:35]}
{[%emt 00:04:38]} Be6 {[%clk 01:28:38]} {[%emt 00:07:05]} 8. cxd5 {[%clk
01:18:21]} {[%emt 00:02:24]} Nxd5 {[%clk 01:28:38]} {[%emt 00:00:10]} 9. Bd3
{[%clk 01:18:18]} {[%emt 00:00:13]} Nc6 {[%clk 01:22:06]} {[%emt 00:06:43]} 10.
O-O {[%clk 01:18:01]} {[%emt 00:00:27]} h6 {[%clk 01:20:22]} {[%emt 00:01:53]}
11. Bb1 {[%clk 01:14:40]} {[%emt 00:03:31]} Nf6 {[%clk 01:14:19]} {[%emt
00:06:13]} 12. Re1 {[%clk 01:04:09]} {[%emt 00:10:41]} Re8 {[%clk 01:10:39]}
{[%emt 00:03:51]} 13. a3 {[%clk 00:59:41]} {[%emt 00:04:38]} Na5 {[%clk
00:50:32]} {[%emt 00:20:16]} 14. Bc2 {[%clk 00:54:13]} {[%emt 00:05:38]} Nc4
{[%clk 00:50:20]} {[%emt 00:00:22]} 15. Qd3 {[%clk 00:52:23]} {[%emt 00:02:00]}
Nd6 {[%clk 00:46:54]} {[%emt 00:03:37]} 16. Qd1 {[%clk 00:42:04]} {[%emt
00:10:27]} Bf5 {[%clk 00:36:13]} {[%emt 00:10:52]} 17. Bb3 {[%clk 00:39:01]}
{[%emt 00:03:14]} Bf8 {[%clk 00:27:05]} {[%emt 00:09:18]} 18. Ne5 {[%clk
00:37:49]} {[%emt 00:01:22]} c6 {[%clk 00:25:28]} {[%emt 00:01:47]} 19. Bf4
{[%clk 00:27:29]} {[%emt 00:10:29]} Be6 {[%clk 00:23:55]} {[%emt 00:01:44]} 20.
Bc2 {[%clk 00:23:11]} {[%emt 00:04:28]} Bf5 {[%clk 00:12:15]} {[%emt 00:11:50]}
21. Ba4 {[%clk 00:20:28]} {[%emt 00:02:53]} Rc8 {[%clk 00:07:30]} {[%emt
00:04:55]} 22. Rc1 {[%clk 00:18:13]} {[%emt 00:02:24]} Nfe4 {[%clk 00:05:32]}
{[%emt 00:02:09]} 23. Bb3 {[%clk 00:15:30]} {[%emt 00:02:53]} Ng5 {[%clk
00:03:39]} {[%emt 00:02:02]} 24. h4 {[%clk 00:09:02]} {[%emt 00:06:37]} Ne6
{[%clk 00:03:28]} {[%emt 00:00:22]} 25. Bg3 {[%clk 00:09:10]} {[%emt 00:00:03]}
Bh7 {[%clk 00:00:46]} {[%emt 00:02:52]} 26. Qh5 {[%clk 00:07:54]} {[%emt
00:01:25]} Rc7 {[%clk 00:00:19]} {[%emt 00:00:38]} 27. Nxf7 {[%clk 00:06:55]}
{[%emt 00:01:08]} Nxf7 {[%emt 00:00:19]} 28. Bxc7 {[%clk 00:06:40]} {[%emt
00:00:23]} Qxc7 {[%clk 00:00:13]} {[%emt 00:00:09]} 29. Bxe6 {[%clk 00:06:17]}
{[%emt 00:00:33]} Re7 {[%clk 00:00:18]} {[%emt 00:00:05]} 30. Nd5 {[%clk
00:06:09]} {[%emt 00:00:18]} cxd5 {[%clk 00:00:12]} {[%emt 00:00:17]} 31. Rxc7
{[%clk 00:06:14]} {[%emt 00:00:05]} Rxc7 {[%clk 00:00:21]} {[%emt 00:00:01]} 32.
Qxd5 {[%clk 00:05:50]} {[%emt 00:00:33]} 1-0

[Event "HSG Open 2022 A"]
[Site "Hilversum, Netherlands"]
[Date "2022.06.19"]
[Round "5.6"]
[White "Berrevoets, Jeroen"]
[Black "Wiersma, Eelke"]
[Result "0-1"]
[TimeControl "1:50 + 0.10"]
[WhiteElo "2030"]
[BlackElo "2300"]

1. e4 {[%clk 01:50:09]} {[%emt 00:00:10]} c6 {[%clk 01:50:12]} {[%emt
00:00:09]} 2. Nc3 {[%clk 01:50:11]} {[%emt 00:00:08]} d5 {[%clk 01:50:12]}
{[%emt 00:00:09]} 3. Nf3 {[%clk 01:50:16]} {[%emt 00:00:05]} Bg4 {[%clk
01:50:11]} {[%emt 00:00:10]} 4. h3 {[%clk 01:50:08]} {[%emt 00:00:19]} Bxf3
{[%clk 01:50:13]} {[%emt 00:00:09]} 5. Qxf3 {[%clk 01:50:11]} {[%emt 00:00:06]}
e6 {[%clk 01:50:14]} {[%emt 00:00:08]} 6. d3 {[%clk 01:49:44]} {[%emt
00:00:38]} Nd7 {[%clk 01:50:14]} {[%emt 00:00:10]} 7. Bd2 {[%clk 01:49:40]}
{[%emt 00:00:15]} Qb6 {[%clk 01:49:06]} {[%emt 00:01:18]} 8. a4 {[%clk
01:39:18]} {[%emt 00:10:32]} Bb4 {[%clk 01:40:16]} {[%emt 00:09:00]} 9. exd5
{[%clk 01:34:05]} {[%emt 00:05:23]} cxd5 {[%clk 01:38:51]} {[%emt 00:01:34]} 10.
Qg3 {[%clk 01:33:03]} {[%emt 00:01:12]} Ngf6 {[%clk 01:34:44]} {[%emt
00:04:17]} 11. Qxg7 {[%clk 01:22:34]} {[%emt 00:10:40]} Rg8 {[%clk 01:34:22]}
{[%emt 00:00:32]} 12. Qh6 {[%clk 01:22:41]} {[%emt 00:00:03]} Rg6 {[%clk
01:28:17]} {[%emt 00:06:15]} 13. Qf4 {[%clk 01:16:33]} {[%emt 00:06:18]} d4
{[%clk 01:23:52]} {[%emt 00:04:35]} 14. a5 {[%clk 01:09:22]} {[%emt 00:07:22]}
Qc5 {[%clk 01:14:15]} {[%emt 00:09:46]} 15. Ne4 {[%clk 00:56:19]} {[%emt
00:13:13]} Nxe4 {[%clk 01:11:28]} {[%emt 00:02:57]} 16. Qxe4 {[%clk 00:54:42]}
{[%emt 00:01:47]} Bxd2+ {[%clk 01:06:13]} {[%emt 00:05:25]} 17. Kxd2 {[%clk
00:54:43]} {[%emt 00:00:09]} Rc8 {[%clk 01:04:20]} {[%emt 00:02:03]} 18. Rc1
{[%clk 00:51:12]} {[%emt 00:03:41]} Qb4+ {[%clk 01:02:30]} {[%emt 00:02:01]} 19.
Kd1 {[%clk 00:50:31]} {[%emt 00:00:50]} Qxb2 {[%clk 01:01:55]} {[%emt
00:00:45]} 20. Be2 {[%clk 00:49:13]} {[%emt 00:01:27]} Nc5 {[%clk 01:00:08]}
{[%emt 00:01:57]} 21. Qe5 {[%clk 00:46:48]} {[%emt 00:02:35]} Ke7 {[%clk
00:59:13]} {[%emt 00:01:05]} 22. Qf4 {[%clk 00:43:44]} {[%emt 00:03:14]} Na4
{[%clk 00:56:46]} {[%emt 00:02:38]} 23. Qh4+ {[%clk 00:38:25]} {[%emt
00:05:28]} Rf6 {[%clk 00:53:31]} {[%emt 00:03:26]} 24. Bf3 {[%clk 00:35:11]}
{[%emt 00:03:24]} Nc3+ {[%clk 00:52:04]} {[%emt 00:01:37]} 25. Kd2 {[%clk
00:35:12]} {[%emt 00:00:13]} Nb1+ {[%clk 00:50:30]} {[%emt 00:01:41]} 26. Kd1
{[%clk 00:29:32]} {[%emt 00:05:49]} Qc3 {[%clk 00:49:08]} {[%emt 00:01:32]} 27.
Rxb1 {[%clk 00:24:32]} {[%emt 00:05:10]} Qxc2+ {[%clk 00:49:07]} {[%emt
00:00:13]} 28. Ke1 {[%clk 00:24:40]} Qxb1+ {[%clk 00:48:56]} {[%emt 00:00:20]}
29. Bd1 {[%clk 00:24:47]} {[%emt 00:00:03]} Qxd3 {[%clk 00:47:55]} {[%emt
00:01:11]} 0-1

[Event "HSG Open 2022 A"]
[Site "Hilversum, Netherlands"]
[Date "2022.06.19"]
[Round "5.7"]
[White "Bosboom, Ardin"]
[Black "Pham, Khoi"]
[Result "0-1"]
[TimeControl "1:50 + 0.10"]
[WhiteElo "2083"]
[BlackElo "2244"]

1. d4 {[%clk 01:50:10]} {[%emt 00:00:10]} d5 {[%clk 01:47:20]} {[%emt
00:02:59]} 2. c4 {[%clk 01:50:14]} {[%emt 00:00:07]} c6 {[%clk 01:47:25]}
{[%emt 00:00:05]} 3. cxd5 {[%clk 01:50:07]} {[%emt 00:00:17]} cxd5 {[%clk
01:47:26]} {[%emt 00:00:09]} 4. Nc3 {[%clk 01:49:58]} {[%emt 00:00:19]} Nf6
{[%clk 01:47:29]} {[%emt 00:00:07]} 5. Bf4 {[%clk 01:50:02]} {[%emt 00:00:07]}
Nc6 {[%clk 01:47:32]} {[%emt 00:00:08]} 6. e3 {[%clk 01:49:55]} {[%emt
00:00:16]} a6 {[%clk 01:46:24]} {[%emt 00:01:18]} 7. Be2 {[%clk 01:49:39]}
{[%emt 00:00:26]} Bf5 {[%clk 01:45:47]} {[%emt 00:00:48]} 8. Nf3 {[%clk
01:49:27]} {[%emt 00:00:22]} e6 {[%clk 01:45:39]} {[%emt 00:00:18]} 9. Qb3
{[%clk 01:48:41]} {[%emt 00:00:55]} Ra7 {[%clk 01:43:31]} {[%emt 00:02:18]} 10.
O-O {[%clk 01:47:14]} {[%emt 00:01:38]} Bd6 {[%clk 01:43:35]} {[%emt 00:00:06]}
11. Ne5 {[%clk 01:43:51]} {[%emt 00:03:33]} Bxe5 {[%clk 01:38:24]} {[%emt
00:05:21]} 12. Bxe5 {[%clk 01:42:06]} {[%emt 00:01:54]} Nxe5 {[%clk 01:37:03]}
{[%emt 00:01:32]} 13. dxe5 {[%clk 01:42:11]} {[%emt 00:00:05]} Nd7 {[%clk
01:36:10]} {[%emt 00:01:03]} 14. f4 {[%clk 01:38:27]} {[%emt 00:03:53]} O-O
{[%clk 01:33:49]} {[%emt 00:02:31]} 15. g4 {[%clk 01:36:08]} {[%emt 00:02:30]}
Bg6 {[%clk 01:31:54]} {[%emt 00:02:05]} 16. Rad1 {[%clk 01:19:25]} {[%emt
00:16:52]} b5 {[%clk 01:25:38]} {[%emt 00:06:27]} 17. Kh1 {[%clk 01:14:24]}
{[%emt 00:05:11]} f6 {[%clk 01:20:31]} {[%emt 00:05:17]} 18. f5 {[%clk
01:00:22]} {[%emt 00:14:12]} Bf7 {[%clk 01:18:20]} {[%emt 00:02:22]} 19. fxe6
{[%clk 01:00:26]} {[%emt 00:00:05]} Bxe6 {[%clk 01:18:25]} {[%emt 00:00:04]} 20.
Bf3 {[%clk 01:00:30]} {[%emt 00:00:06]} Nxe5 {[%clk 01:14:04]} {[%emt
00:04:32]} 21. Bxd5 {[%clk 01:00:04]} {[%emt 00:00:36]} Bxd5+ {[%clk 01:14:05]}
{[%emt 00:00:09]} 22. Nxd5 {[%clk 00:53:43]} {[%emt 00:06:31]} Qa8 {[%clk
01:12:09]} {[%emt 00:02:06]} 23. e4 {[%clk 00:53:29]} {[%emt 00:00:23]} Kh8
{[%clk 01:12:07]} {[%emt 00:00:12]} 24. Qg3 {[%clk 00:51:05]} {[%emt 00:02:34]}
Raf7 {[%clk 01:00:04]} {[%emt 00:12:13]} 25. Rfe1 {[%clk 00:42:18]} {[%emt
00:08:57]} Re8 {[%clk 00:54:23]} {[%emt 00:05:51]} 26. Rc1 {[%clk 00:35:03]}
{[%emt 00:07:26]} Qd8 {[%clk 00:49:27]} {[%emt 00:05:06]} 27. Rc3 {[%clk
00:31:53]} {[%emt 00:03:20]} Rd7 {[%clk 00:47:04]} {[%emt 00:02:34]} 28. Rec1
{[%clk 00:27:02]} {[%emt 00:05:01]} Nc4 {[%clk 00:43:32]} {[%emt 00:03:41]} 29.
Qg2 {[%clk 00:19:40]} {[%emt 00:07:31]} Nd6 {[%clk 00:40:58]} {[%emt 00:02:45]}
30. Rc6 {[%clk 00:15:44]} {[%emt 00:04:06]} h6 {[%clk 00:29:43]} {[%emt
00:11:25]} 31. e5 {[%clk 00:10:16]} {[%emt 00:05:38]} Nc4 {[%clk 00:24:40]}
{[%emt 00:05:13]} 32. b3 {[%clk 00:02:39]} {[%emt 00:07:48]} Rxd5 {[%clk
00:22:28]} {[%emt 00:02:22]} 33. bxc4 {[%clk 00:02:43]} {[%emt 00:00:06]} Rdxe5
{[%clk 00:22:29]} {[%emt 00:00:09]} 34. Qf2 {[%clk 00:00:49]} {[%emt 00:02:04]}
Re2 {[%clk 00:22:05]} {[%emt 00:00:33]} 35. Qf1 {[%clk 00:00:19]} {[%emt
00:00:41]} Qd2 {[%clk 00:21:52]} {[%emt 00:00:22]} 36. Rd1 {[%clk 00:00:12]}
{[%emt 00:00:17]} Qe3 {[%clk 00:19:03]} {[%emt 00:02:59]} 37. Rxf6 {[%clk
00:00:13]} {[%emt 00:00:09]} Qe4+ {[%clk 00:18:06]} {[%emt 00:01:07]} 38. Rf3
{[%clk 00:00:22]} Re3 {[%clk 00:17:38]} {[%emt 00:00:38]} 39. Kg2 {[%clk
00:00:24]} {[%emt 00:00:08]} Rf8 {[%clk 00:17:36]} {[%emt 00:00:12]} 40. Rd3
{[%clk 00:00:14]} {[%emt 00:00:20]} Rfxf3 {[%clk 00:17:30]} {[%emt 00:00:15]}
41. Rxe3 {[%clk 00:00:22]} {[%emt 00:00:04]} Rxe3+ {[%clk 00:17:29]} {[%emt
00:00:10]} 0-1